Cogmind - Beta 16 @@@ ROGUE MODE // 2026.01.08 @ 16:06:10 Player: KZ_RAD Result: Destroyed by Y-45 Defender with Heavy Assault Rifle Performance ------------- Evolutions (1) 500 Regions Visited (3) 600 Robots Destroyed (26) 130 Value Destroyed (617) 617 Prototype IDs (4) 80 Alien Tech Used (0) 0 Bonus (200) 200 TOTAL SCORE: 2127 Bonus ------- Pacifist 200 Cogmind --------- Core Integrity 0/400 Matter 280/300 Energy 1/100 System Corruption 0% Temperature Hot (254) Movement Walking (120) Location -9/Storage Parts ------- > --- POWER (1) -------- (None) > --- PROPULSION (2) --- Aluminum Leg > --- UTILITY (4) ------ Heat Sink Terrain Scan Processor Improved Targeting Computer > --- WEAPON (2) ------- Advanced Beam Cannon Advanced Beam Cannon > --- INVENTORY (5) ---- Improved Medium Laser Improved Medium Laser Improved Medium Laser Ion Burst Cannon Peak State ------------ > --- POWER ------------ Ion Engine > --- PROPULSION ------- Aluminum Leg Aluminum Leg > --- UTILITY ---------- Heat Sink Small Storage Unit Terrain Scan Processor Improved Targeting Computer > --- WEAPON ----------- Advanced Beam Cannon Ion Burst Cannon > --- INVENTORY -------- Improved Medium Laser Improved Medium Laser Improved Medium Laser Improved Medium Laser Advanced Beam Cannon Advanced Beam Cannon Advanced Beam Cannon Advanced Beam Cannon [Rating: 20] Favorites ----------- Power Ion Engine Engine Ion Engine Propulsion Aluminum Leg Leg Aluminum Leg Utility Small Storage Unit Device Heat Sink Storage Small Storage Unit Processor Terrain Scan Processor Weapon Advanced Beam Cannon Energy Gun Improved Medium Laser Energy Cannon Advanced Beam Cannon Ballistic Gun Light Assault Rifle Build | -11 -10 -9 -9 ------- Run | Yrd Mat Mat Sto Slots Evolved 2 | . . 2 . Power . | . . . . Propulsion . | . . . . Utility 2 | . . 2 . Weapon . | . . . . Parts Attached 25 | 7 3 . 15 Power 2 | 2 . . . Engine 2 | 2 . . . Core . | . . . . Reactor . | . . . . Propulsion 6 | 2 2 . 2 Treads . | . . . . Leg 6 | 2 2 . 2 Wheel . | . . . . Hover . | . . . . Flight . | . . . . Utility 5 | 1 1 . 3 Device 2 | . . . 2 Storage 1 | 1 . . . Processor 2 | . 1 . 1 Hackware . | . . . . Protection . | . . . . Artifact . | . . . . Weapon 12 | 2 . . 10 Energy Gun 1 | . . . 1 Energy Cannon 7 | . . . 7 Ballistic Gun 4 | 2 . . 2 Ballistic Cannon . | . . . . Launcher . | . . . . Special Weapon . | . . . . Impact Weapon . | . . . . Slashing Weapon . | . . . . Piercing Weapon . | . . . . Special Melee Weapon . | . . . . Unidentified Prototypes 2 | . . . 2 Parts Lost 10 | 2 1 . 7 Power 2 | 1 . . 1 Propulsion 5 | 1 1 . 3 Utility 2 | . . . 2 Weapon 1 | . . . 1 Highest Loss Streak 7 | 2 1 . 7 To Critical Strikes . | . . . . Average Backups 4 | 3 2 5 7 Power . | . . 1 . Propulsion . | . . 1 . Utility . | . . . . Weapon 3 | 2 1 3 6 Tool/Special . | . . . . Unused Backups 9 | . . . 9 Power 1 | . . . 1 Propulsion 1 | . . . 1 Utility . | . . . . Weapon 7 | . . . 7 Tool/Special . | . . . . Average Slot Usage (%) 89 | . 81 77 91 Engine 10 | . 14 11 10 Leg 19 | . 15 22 20 Device 6 | . . . 8 Storage 11 | . 14 11 10 Processor 17 | . 8 11 19 Energy Cannon 14 | . . . 17 Ballistic Gun 8 | . 28 22 4 Peak Build Rating 20 | 5 8 8 20 Average Rating 6 | 3 6 8 14 On Entrance 5 | . 5 8 8 Avg Prop Armor Cover (%) 10 | . . . 10 Naked Turns . | . . . . Heaviest Build 19 | 12 12 12 19 Greatest Support 20 | 20 20 20 20 Greatest Overweight (x) 6 | 1 3 . 6 Average Overweight (x) . | . . . . Largest Inventory Capacity 8 | 8 8 8 8 Average Capacity 7 | 7 8 8 7 Most Carried 8 | 4 5 5 8 Average Carried 4 | 3 3 5 7 Final Capacity 8 | 8 8 8 5 Final Carried 5 | 1 5 5 4 Class Distribution -------------------- 81% | Mutant 18% | Scavenger-Mutant Dominant Class ---------------- Mutant | -10/Materials Mutant | -9/Materials Scavenger-Mutant | -9/Storage Resources | -11 -10 -9 -9 ----------- Run | Yrd Mat Mat Sto Matter Collected 518 | 207 87 . 224 Remotely . | . . . . Salvage Created 793 | . . . 793 Parts 53 | . . . 53 Haulers Intercepted 1 | . . . 1 Recyclers Shooed . | . . . . Parts Field Recycled . | . . . . Retrieved Matter . | . . . . Parts Self-Destructed . | . . . . Prevented . | . . . . Parts Restored . | . . . . Kills | -11 -10 -9 -9 ------- Run | Yrd Mat Mat Sto Combat Hostiles Destroyed 21 | . . . 21 Guns 4 | . . . 4 Cannons 15 | . . . 15 Classes Destroyed 7 | . . . 7 Worker 2 | . . . 2 Hauler 1 | . . . 1 Operator 1 | . . . 1 Watcher 1 | . . . 1 Swarmer 9 | . . . 9 Grunt 9 | . . . 9 Sentry 3 | . . . 3 Best Kill Streak 8 | . . . 8 Combat Bots Only 5 | . . . 5 Max Kills in Single Turn 2 | . . . 2 Gunslinging . | . . . . Exploded . | . . . . Melee . | . . . . Uniques/NPCs Destroyed . | . . . . Combat | -11 -10 -9 -9 -------- Run | Yrd Mat Mat Sto Hostile Shots Fired 181 | 10 3 . 168 Missed 42 | . 2 . 40 Hits 139 | 10 1 . 128 Projectile 139 | 10 1 . 128 AOE 10 | 10 . . . Critical Strikes 4 | . . . 4 Damage Taken 1965 | 394 64 . 1507 Core 506 | 92 3 . 411 Absorbed by Shields . | . . . . Regen/Repaired (Parts) 86 | . . . 86 Core Remaining (%) 62 | 63 62 . . Volleys Fired 115 | 1 1 . 113 Largest 2 | 2 2 . 2 Hottest 136 | 40 40 . 136 Shots Fired 222 | 2 2 . 218 Gun 68 | 2 2 . 64 Cannon 154 | . . . 154 Launcher . | . . . . Special . | . . . . Kinetic 68 | 2 2 . 64 Thermal 154 | . . . 154 Explosive . | . . . . Electromagnetic . | . . . . Robot Hit Streak 16 | 1 3 . 16 Robot Miss Streak 4 | 1 . . 4 Penetration Max . | . . . . Secondary Targets 1 | . . . 1 Max Gunslinging Chain 1 | . . . 1 Shots Hit Robots 68 | 1 2 . 65 Core Hits 25 | . 1 . 24 Critical Kills 2 | . . . 2 Critical Parts Destroyed . | . . . . Critical Strikes 2 | . . . 2 Meltdown 2 | . . . 2 Melee Attacks . | . . . . Impact . | . . . . Slashing . | . . . . Piercing . | . . . . Sneak Attacks . | . . . . Combat Hostiles . | . . . . Follow-up Attacks . | . . . . Damage Inflicted 1362 | 9 18 . 1335 Guns 69 | 9 18 . 42 Cannons 1293 | . . . 1293 Explosions . | . . . . Melee . | . . . . Ramming . | . . . . Kinetic 69 | 9 18 . 42 Thermal 1293 | . . . 1293 Explosive . | . . . . Electromagnetic . | . . . . Impact . | . . . . Slashing . | . . . . Piercing . | . . . . Highest Corruption . | . . . . Average Corruption . | . . . . Corruption Purged . | . . . . Corruption Blocked . | . . . . Overload Shots . | . . . . Overflow Damage 2 | . . . 2 Projectiles 2 | . . . 2 Explosions . | . . . . Melee . | . . . . Knockbacks . | . . . . Impact . | . . . . Kinetic . | . . . . Secondary . | . . . . Self-Inflicted Damage . | . . . . Shots . | . . . . Rammed . | . . . . Targets Rammed . | . . . . Kicked . | . . . . Crushed . | . . . . Highest Temperature 492 | . . . 492 Average Temperature 147 | . . . 147 Received Heat Transfer 426 | . . . 426 Effects 13 | . . . 13 Shutdowns 2 | . . . 2 Energy Bleed 2 | . . . 2 Interference 3 | . . . 3 Short Circuit 2 | . . . 2 Damage (minor) 2 | . . . 2 Damage (major) 2 | . . . 2 Siege Activations . | . . . . Martial Activations . | . . . . Shielding Activations . | . . . . Robots Disrupted . | . . . . Combat Hostiles . | . . . . Robots Corrupted . | . . . . Combat Hostiles . | . . . . Parts Fried . | . . . . Impact Corruptions . | . . . . Robots Melted 2 | . . . 2 Combat Hostiles 2 | . . . 2 Parts Melted 8 | . . . 8 Heat Transferred 2331 | . . . 2331 Parts Sabotaged . | . . . . Parts Stolen . | . . . . Parts Stripped . | . . . . Power Chain Reactions . | . . . . Alert | -11 -10 -9 -9 ------- Run | Yrd Mat Mat Sto Maximum Alert Level 1 | . . . 1 Low Security (%) 97 | 100 100 100 90 Level 1 2 | . . . 9 Level 2 . | . . . . Level 3 . | . . . . Level 4 . | . . . . Level 5 . | . . . . High Security . | . . . . Max Security . | . . . . Peak Influence 273 | . 5 . 273 Initial . | . . . . Average 22 | . . . 92 Influence Increases 668 | . 5 . 663 Destroy 0b10 Robot/C 420 | . . . 420 Destroy 0b10 Robot/NC 25 | . . . 25 Destroy Leader 74 | . . . 74 Successful Hack 27 | . 5 . 22 Disable Machine 75 | . . . 75 Destroy Structure 2 | . . . 2 Lose Combat Pursuer 45 | . . . 45 Influence Decreases 447 | . 5 . 442 Time Decay 377 | . 5 . 372 Lost Part 70 | . . . 70 Squads Dispatched 5 | . 1 . 4 Investigation 1 | . . . 1 Extermination . | . . . . Reinforcement 2 | . 1 . 1 Assault . | . . . . Garrison 2 | . . . 2 Intercept . | . . . . Searches Triggered . | . . . . Construction Impeded . | . . . . Haulers Reinforced . | . . . . Active Scanning Responses . | . . . . Cargo Convoy Interrupts . | . . . . Stealth | -11 -10 -9 -9 --------- Run | Yrd Mat Mat Sto Distress Signals 1 | . . . 1 Communications Jammed . | . . . . Distress Signals . | . . . . Times Spotted 40 | 3 9 . 28 Peak Tracking Total 5 | 2 4 . 5 Tactical Retreats 2 | . . . 2 Traps | -11 -10 -9 -9 ------- Run | Yrd Mat Mat Sto Traps Triggered 1 | . . . 1 Indirectly . | . . . . Trap Hack Attempts . | . . . . Triggered . | . . . . Disarmed . | . . . . Reprogrammed . | . . . . Reused . | . . . . Traps Extracted . | . . . . Installed . | . . . . Triggered . | . . . . Machines | -11 -10 -9 -9 ---------- Run | Yrd Mat Mat Sto Machines Disabled 5 | . . . 5 Max in Single Turn 1 | . . . 1 Machines Repaired . | . . . . Machines Dismantled . | . . . . Machines Sabotaged . | . . . . Overloaded Fab Kills . | . . . . Hacking | -11 -10 -9 -9 --------- Run | Yrd Mat Mat Sto Machines Accessed 8 | . 1 . 7 Terminals 6 | . 1 . 5 Fabricators . | . . . . Repair Stations 2 | . . . 2 Recycling Units . | . . . . Scanalyzers . | . . . . Garrison Access . | . . . . Total Hacks 26 | . 4 . 22 Successful 13 | . 2 . 11 Failed 13 | . 2 . 11 Catastrophic 3 | . 1 . 2 Database Lockouts . | . . . . Manual 1 | . . . 1 Terminals 14 | . 4 . 10 Fabricators . | . . . . Repair Stations 12 | . . . 12 Recycling Units . | . . . . Scanalyzers . | . . . . Garrison Access . | . . . . Terminal Hacks 5 | . 2 . 3 Prototype ID Bank 1 | . 1 . . Open Door 2 | . . . 2 Emergency Access Points 1 | . 1 . . Dispatch Records 1 | . . . 1 Fabricator Hacks . | . . . . Repair Station Hacks 8 | . . . 8 Scan Component 4 | . . . 4 Repair 3 | . . . 3 Refit 1 | . . . 1 Recycling Unit Hacks . | . . . . Scanalyzer . | . . . . Garrison Access Hacks . | . . . . Unauthorized Hacks . | . . . . Terminals . | . . . . Fabricators . | . . . . Repair Stations . | . . . . Recycling Units . | . . . . Scanalyzers . | . . . . Garrison Access . | . . . . Data Cores Recovered 2 | . 1 . 1 Used 1 | . 1 . . Hacking Detections 8 | . 1 . 7 Full Trace Events 1 | . . . 1 Feedback Events . | . . . . Feedback Blocked . | . . . . Robot Schematics Acquired . | . . . . Robots Built . | . . . . Authchips . | . . . . Time . | . . . . Total Robot Build Rating . | . . . . Part Schematics Acquired . | . . . . Parts Built . | . . . . Authchips . | . . . . Time . | . . . . Total Part Build Rating . | . . . . Part Studies Acquired . | . . . . Parts Repaired 3 | . . . 3 Time 78 | . . . 78 Parts Recycled . | . . . . Recycled Matter . | . . . . Retrieved Matter . | . . . . Retrieved Components . | . . . . Parts Scanalyzed . | . . . . Part Schematics Acquired . | . . . . Parts Damaged . | . . . . Bothacking | -11 -10 -9 -9 ------------ Run | Yrd Mat Mat Sto Used RIF Installer . | . . . . Robots Hacked . | . . . . Non-combat . | . . . . Combat . | . . . . Robot Hacks Applied . | . . . . Relay Couplers Released . | . . . . Fabnet Peak Effective % . | . . . . Robots Rewired . | . . . . Allies Hacked . | . . . . Hacks Repelled . | . . . . Allies | -11 -10 -9 -9 -------- Run | Yrd Mat Mat Sto Total Allies . | . . . . Largest Group . | . . . . Highest-Rated Group . | . . . . Highest-Rated Ally . | . . . . Total Orders . | . . . . Ally Attacks . | . . . . Total Damage . | . . . . Kills . | . . . . Allies Corrupted . | . . . . Allies Melted . | . . . . Intel | -11 -10 -9 -9 ------- Run | Yrd Mat Mat Sto Active Infowar (turns) . | . . . . Robot Analysis Total . | . . . . Derelict Logs Recovered . | . . . . Drone Launches . | . . . . Drone Recoveries . | . . . . Exploration | -11 -10 -9 -9 ------------- Run | Yrd Mat Mat Sto Turns Passed 4210 | 2954 220 12 1024 Spaces Moved 1001 | 492 112 11 386 Core 23 | 5 3 . 15 Treads . | . . . . Legs 978 | 487 109 11 371 Wheels . | . . . . Hover . | . . . . Flight . | . . . . Fastest Speed 50 | 50 120 120 120 Average Speed 129 | 120 173 120 129 Slowest Speed 350 | 190 200 120 350 Overloaded Moves . | . . . . Propulsion Burnouts . | . . . . Robots Hopped . | . . . . Potential Cave-ins . | . . . . Cave-ins Triggered . | . . . . Exploration Rate (%) 32 | 46 28 3 52 Regions Visited 3 Branch Regions 1 Pre-discovered Areas . | . . . . Known Exits Taken . | . . . . Unknown Exits Taken 3 | 1 1 1 . Scrap Searched . | . . . . Spaces Dug . | . . . . Terrain Destroyed . | . . . . Melee . | . . . . Projectile . | . . . . AOE . | . . . . Terrain Rammed . | . . . . Walls Destroyed . | . . . . Machines Disabled . | . . . . Actions | -11 -10 -9 -9 --------- Run | Yrd Mat Mat Sto Total 3712 | 2854 136 10 712 Wait 2510 | 2347 14 . 149 Move 998 | 491 111 10 386 Hop . | . . . . Pick Up 41 | 8 7 . 26 Fast Attach . | . . . . Attach 23 | 7 3 . 13 Detach . | . . . . Swap 7 | . . . 7 Drop 18 | . . . 18 Fire 115 | 1 1 . 113 Melee . | . . . . Ram . | . . . . Kick . | . . . . Crush . | . . . . Escape Stasis . | . . . . Rewire . | . . . . Trap . | . . . . Miscellaneous . | . . . . Route ------- -11/Scrapyard -10/Materials -9/Materials -9/Storage History --------- Turn | Location | Event 8 | -11/Scrapyard | Discovered new exit (range 16) 2936 | -11/Scrapyard | Assembled infested the area 2955 | -11/Scrapyard | Entered Materials 2956 | -10/Materials | Met a group of wandering Federalists 2967 | -10/Materials | Build established: Mutant 3159 | -10/Materials | Discovered new exit (range 10) 3162 | -10/Materials | Lost 3 allies 3175 | -10/Materials | Entered another Materials area 3175 | -9/Materials | Evolved 2 slots: Utility x2 3175 | -9/Materials | Discovered new exit (range 11) 3187 | -9/Materials | Entered Storage 3613 | -9/Storage | Build established: Scavenger-Mutant 3733 | -9/Storage | Repaired Aluminum Leg 3789 | -9/Storage | Repaired Aluminum Leg 3821 | -9/Storage | Repaired Ion Engine 4003 | -9/Storage | Garrison activated, responded to threat 4160 | -9/Storage | Garrison activated, responded to threat 4179 | -9/Storage | Core integrity fell below 50% 4203 | -9/Storage | Core integrity fell below 20% 4211 | -9/Storage | Destroyed by Y-45 Defender with Heavy Assault Rifle Last Messages --------------- (-7). Aluminum Leg destroyed. U-05 Engineer builds a Door. Adv. Beam Cannon broken. Overheating: Short circuit. Dropped Adv. Beam Cannon. Critical hit (Burn: +37). Dropped Broken Adv. Beam Cannon. Overheating: Energy bleed (-12). Acquired Aluminum Leg. Acquired 20 matter. Acquired Aluminum Leg. Sml. Storage Unit destroyed. S-10 Pest destroyed. Aluminum Leg destroyed. Adv. Beam Cannon destroyed. Y-45 Defender heat damages Hvy. Assault Rifle. Terrain Scan Processor broken. Overheating: Short circuit. Acquired Heat Sink. Map ----- +----------------------------------------------------+ | ??????????????????????????????????????????? | | ?????????? ????????????????????????????? | | ????????? ???????????????????????????? | | ?????????# #???????????????????????????? | | ?????????# #?????^?????????????????????? | | ?????????# #???????????????????????????? | | ?????????# #???????????????????????????? | | ?????????# #???????????????????????????? | | ?????????# #???????????????????????????? | | ?????????# #???????????????????????????? | | ?????????# ###########?????????????????? | | ?????????# ## #?????????????????? | | ########## ## "" #?????????????????? | | =# """ #?????????????????? | | !*#= """ #####?????????????? | | !=%%+! # #####+##??????? | | !==# """ + a +??????? | | ??#### =%%# """ # ^ #??????? | | ?????# = # """ #Y #??????? | | ?????# # # ^ #??????? | | ?????# ########## ^ +??????? | | ?##### ! ^^ #??????? | | ?# ] +%=% ] ][%#### #??????? | | ?###T# = * a% #???? #??????? | | ???### ! % #####+#####s[Y #????? #??????? | | ?????####### #?????????#%@% #?????????????? | | ???????????# #?????????#+##+#?????????????? | | ???????????# #????????? ?? ????????????? | | ???????##### #????????# ??"" ???????????? | | ?????###"T"#+#????????# ??"" #??????????? | | ?????# !% #???????? ??"" +??????????? | | ?????# ! #????????# ???? #??????????? | | ?????#""" ###??????# "????? #??????????? | | ?????#""" ""#??????# "?????????????????? | | ?????#""" T"#??????# ??????????????????? | | ?????#""" ""#??????# ??????????????????? | | ?????#""" ###?????#######???? ???????? | | ?????# #???????# ????? #??????? | | ?????# #???????# ?????# #??????? | | ?????# #???????# ??????# #??????? | | +????# #######?# """"""?+ #??????? | | # #####+#### #?# "[[[]"?# #??????? | | # % ### "]*=["?# #??????? | | + " " """" # #??????? | | # [% ### # #??????? | | ##+########### #?########### #??????? | | ?????????????## ##?########### #??????? | | ??????????????# #??# # +??????? | | ??????????????# #??# """""" # #??????? | | ??????#######?# #??# [[[ " # #??????? | +----------------------------------------------------+ Best States ------------- Heat Dissipation 38 Energy Generation 10 Energy Capacity 250 Matter Stores 300 Matter Capacity 300 Sight Range 16 Terrain Scan Density 85 Evasion (%) 55 Targeting Accuracy 6 Item Schematics ----------------- None Robot Schematics ------------------ None Fabricated ------------ Nothing Repaired ---------- Aluminum Leg | 63% | -9/Storage Aluminum Leg | 65% | -9/Storage Ion Engine | 63% | -9/Storage Studied --------- None Alien Tech Used ----------------- None Achievements -------------- Curiosity Killed The Cat Dynamic Key Challenges ------------ None Game ------ Seed MatterFieldthrustDrive Manual? 0 Play Time 00:22:57 Cumulative 12.2 hours Start 2026.01.08 @ 15:38:11 End 2026.01.08 @ 16:06:10 Sessions 1 Manual Loads 0 Difficulty Rogue Special Mode None Game No. 25 Rogue 25 Adventurer 0 Explorer 0 Win Type - Total 0 Types 0/0/0/0/0/0/0/0/0/0 Lore% 9 Gallery% 13 Achievement% 14 Wizard Run 0 Options --------- Layout 1 ASCII 0 Keyboard 0 Movement Mouse Keybinds 0 Fullscreen 1 Font 32/SmallcapsGlow Map View 50x35 Zoom Use 0% Tactical HUD 0 Map Filters NONE Filters NONE Steam 1 RUN: e7c76244-db39-4eab-9723-c691ade1d71e